Cogmind - Beta 12 @@@ ROGUE MODE // 2024.02.10 @ 13:14:25 Player: Inomamais Result: Destroyed by P-70 Sage with Tesla Rifle Performance ------------- Evolutions (6) 3000 Regions Visited (11) 2200 Robots Destroyed (180) 900 Value Destroyed (7979) 7979 Prototype IDs (3) 60 Alien Tech Used (0) 0 Bonus (1236) 1236 TOTAL SCORE: 15375 Bonus ------- High Alert Combat Kills 963 Follower Combat Kills 251 Aligned with FarCom 300 Friendly Fire -278 Cogmind --------- Core Integrity 0/1150 Matter 147/300 Energy 100/100 System Corruption 16% Temperature Cool (0) Movement Core (50) Location -4/Factory Parts ------- > --- POWER (2) -------- (None) > --- PROPULSION (5) --- (None) > --- UTILITY (6) ------ Advanced Cooling System Improved Coolant Injector > --- WEAPON (6) ------- (None) > --- INVENTORY (5) ---- Layered Heavy Armor Plating Heavy Disruptor Cannon Ripper Peak State ------------ > --- POWER ------------ Neutrino Core Antimatter Reactor > --- PROPULSION ------- Myomer Leg Myomer Leg Advanced VSS Leg Advanced VSS Leg Advanced VSS Leg > --- UTILITY ---------- Advanced Heat Sink Cooling System Improved Coolant Injector High-capacity Storage Unit Advanced Transmission Jammer Medium Reactive Plating > --- WEAPON ----------- Phase Gun Advanced Plasma Cannon Advanced Plasma Cannon Advanced Plasma Cannon Matter Neutralizer Railgun > --- INVENTORY -------- Light Antimatter Reactor Light Antimatter Reactor Flexi-carbon Leg Flexi-carbon Leg Flexi-carbon Leg Myomer Leg Improved Cooling System Advanced Cooling System Improved Coolant Injector Advanced Transmission Jammer Improved Light Armor Plating Improved Medium Armor Plating Layered Heavy Armor Plating Wave Gun Wave Gun Enhanced Gauss Cannon Mini Grenade Launcher Ripper [Rating: 122] Favorites ----------- Power Fusion Reactor Engine Deuterium Engine Power Core Neutrino Core Reactor Fusion Reactor Propulsion Flexi-carbon Leg Leg Flexi-carbon Leg Wheel Wheel Utility High-capacity Storage Unit Device Advanced Heat Sink Storage High-capacity Storage Unit Processor Improved Signal Interpreter Protection Medium Armor Plating Weapon Cooled Pulse Rifle Energy Gun Cooled Pulse Rifle Energy Cannon Advanced Plasma Cannon Ballistic Gun Heavy Assault Rifle Ballistic Cannon Hypervelocity Gauss Cannon Launcher Mini Grenade Launcher Slashing Weapon Ripper Build | -11 -10 -10 -9 -9 -9 -8 -8 -7 -6 -5 -4 ------- Run | Jun Mat Min Mat Min Exi Min Mat Fac Fac Fac Fac Slots Evolved 12 | . . . 2 . . . 2 2 2 2 2 Power 1 | . . . . . . . . . 1 . . Propulsion 3 | . . . . . . . 1 1 . . 1 Utility 4 | . . . . . . . 1 1 1 1 . Weapon 4 | . . . 2 . . . . . . 1 1 Parts Attached 192 | 6 9 6 10 . . . 5 31 10 21 94 Power 23 | 1 1 1 2 . . . 1 1 3 3 10 Engine 9 | 1 1 1 2 . . . 1 1 1 1 . Core 6 | . . . . . . . . . 2 1 3 Reactor 8 | . . . . . . . . . . 1 7 Propulsion 46 | 2 2 2 1 . . . 1 9 2 5 22 Treads . | . . . . . . . . . . . . Leg 44 | . 2 2 1 . . . 1 9 2 5 22 Wheel 2 | 2 . . . . . . . . . . . Hover . | . . . . . . . . . . . . Flight . | . . . . . . . . . . . . Utility 46 | 1 4 1 3 . . . 3 8 1 4 21 Device 22 | . 1 . . . . . 3 2 1 3 12 Storage 5 | 1 1 . 1 . . . . 2 . . . Processor 1 | . . . . . . . . 1 . . . Hackware . | . . . . . . . . . . . . Protection 18 | . 2 1 2 . . . . 3 . 1 9 Artifact . | . . . . . . . . . . . . Weapon 77 | 2 2 2 4 . . . . 13 4 9 41 Energy Gun 15 | . . . . . . . . 4 . 1 10 Energy Cannon 11 | . . . . . . . . 1 . . 10 Ballistic Gun 26 | 2 2 1 3 . . . . 4 2 4 8 Ballistic Cannon 5 | . . . . . . . . . . . 5 Launcher 10 | . . 1 1 . . . . 1 . 2 5 Special Weapon . | . . . . . . . . . . . . Impact Weapon . | . . . . . . . . . . . . Slashing Weapon 10 | . . . . . . . . 3 2 2 3 Piercing Weapon . | . . . . . . . . . . . . Special Melee Weapon . | . . . . . . . . . . . . Unidentified Prototypes 3 | . . . . . . . 1 1 . 1 . Parts Lost 56 | . . 3 . . . . . 5 . 1 47 Power 6 | . . 1 . . . . . . . . 5 Propulsion 18 | . . 1 . . . . . 2 . . 15 Utility 15 | . . 1 . . . . . 2 . 1 11 Weapon 17 | . . . . . . . . 1 . . 16 Highest Loss Streak 16 | . . 2 . . . . . 2 . 1 16 To Critical Strikes . | . . . . . . . . . . . . Average Slot Usage (%) 98 | . 99 100 100 100 100 100 100 99 100 100 96 Engine 5 | . 14 14 11 11 11 11 9 7 6 4 . Core 2 | . . . . . . . . . 5 2 4 Reactor 2 | . . . . . . . . . . 3 5 Leg 25 | . 17 28 22 22 22 22 27 29 26 23 24 Device 12 | . 1 . . . . . 9 13 13 17 18 Storage 7 | . 14 14 11 11 11 11 9 7 6 5 4 Processor 1 | . . . . . . . . . 6 5 1 Protection 7 | . 12 14 11 11 11 11 9 8 6 5 4 Energy Gun 10 | . . . . . . . . 15 20 17 11 Energy Cannon 3 | . . . . . . . . 5 2 . 6 Ballistic Gun 13 | . 28 26 42 33 33 33 27 7 2 9 6 Ballistic Cannon 1 | . . . . . . . . . . . 4 Launcher 1 | . . 1 1 11 11 11 9 . . . . Naked Turns . | . . . . . . . . . . . . Heaviest Build 132 | 11 38 38 42 42 42 42 47 90 98 107 132 Greatest Support 108 | 20 20 20 23 23 23 23 33 68 68 80 108 Greatest Overweight (x) 2 | . 1 1 2 1 1 1 1 1 1 1 1 Average Overweight (x) . | . . 1 1 1 1 1 1 . 1 1 . Largest Inventory Capacity 20 | 8 15 15 15 15 15 15 15 20 20 20 20 Average Capacity 17 | 7 10 15 15 15 15 15 15 18 20 20 19 Most Carried 20 | 6 9 15 15 15 15 15 15 20 20 20 20 Average Carried 16 | 2 7 11 14 15 14 15 14 17 19 19 18 Final Capacity 20 | 8 15 15 15 15 15 15 15 20 20 20 5 Final Carried 20 | 6 9 15 15 15 15 15 15 20 20 20 5 Class Distribution -------------------- 27% | Scavenger-Executioner 21% | Mutant 19% | Skirmisher 16% | Tank 6% | Scavenger-Skirmisher 3% | Executioner 3% | Scavenger-Tank Dominant Class ---------------- Mutant | -10/Materials Mutant | -10/Mines Tank | -9/Materials Mutant | -9/Mines Mutant | -9/Exiles Mutant | -8/Mines Skirmisher | -8/Materials Skirmisher | -7/Factory Skirmisher | -6/Factory Tank | -5/Factory Scavenger-Executioner | -4/Factory Resources | -11 -10 -10 -9 -9 -9 -8 -8 -7 -6 -5 -4 ----------- Run | Jun Mat Min Mat Min Exi Min Mat Fac Fac Fac Fac Matter Collected 4316 | 212 278 164 290 . . 10 227 538 204 523 1870 Remotely . | . . . . . . . . . . . . Salvage Created 7515 | . 356 179 514 . . 14 261 1361 633 1027 3170 Parts 364 | . 21 12 31 . . 7 8 69 33 49 134 Haulers Intercepted 1 | . . . . . . . . 1 . . . Recyclers Shooed 3 | . . . 1 . . . . 1 . 1 . Parts Field Recycled . | . . . . . . . . . . . . Retrieved Matter . | . . . . . . . . . . . . Parts Self-Destructed . | . . . . . . . . . . . . Prevented . | . . . . . . . . . . . . Kills | -11 -10 -10 -9 -9 -9 -8 -8 -7 -6 -5 -4 ------- Run | Jun Mat Min Mat Min Exi Min Mat Fac Fac Fac Fac Combat Hostiles Destroyed 150 | . 8 7 11 . . 4 4 28 10 23 55 Guns 84 | . 8 4 10 . . . 4 15 10 14 19 Cannons 23 | . . . . . . . . 3 . . 20 AOE 34 | . . 3 1 . . 4 . 8 . 9 9 Classes Destroyed 20 | . 4 3 1 . . . . 5 . 1 6 Worker 8 | . . 1 . . . . . 1 1 . 5 Builder 4 | . . . . . . . . . . 1 3 Tunneler 2 | . . . . . . . . 1 . . 1 Hauler 1 | . . . . . . . . 1 . . . Recycler 4 | . 1 . . . . . . 2 . 1 . Operator 1 | . . . . . . . . 1 . . . Watcher 10 | . 1 . 2 . . . 1 2 2 . 2 Swarmer 35 | . 3 3 1 . . 4 . 10 . 8 6 Grunt 51 | . 5 2 7 . . . 5 8 5 9 10 Brawler 3 | . . . . . . . . . . . 3 Duelist 2 | . . . . . . . . . . . 2 Protector 1 | . . . . . . . . . . . 1 Sentry 15 | . . . 3 . . . . 3 2 . 7 Demolisher 1 | . . 1 . . . . . . . . . Specialist 1 | . . . . . . . . . . . 1 Hunter 7 | . . . . . . . . 3 . . 4 Programmer 32 | . . . . . . . . 4 3 6 19 Striker 1 | . . . . . . . . . . . 1 Executioner 1 | . . . . . . . . . . . 1 Assembled 1 | . . 1 . . . . . . . . . Best Kill Streak 12 | . 2 3 4 . . 4 2 5 4 12 6 Combat Bots Only 10 | . 2 3 3 . . 4 2 4 3 10 5 Max Kills in Single Turn 5 | . 1 2 1 . . 4 1 5 1 3 2 Gunslinging . | . . . . . . . . . . . . Exploded 4 | . . 2 1 . . 4 . 4 . 3 2 Melee . | . . . . . . . . . . . . Uniques/NPCs Destroyed . | . . . . . . . . . . . . Combat | -11 -10 -10 -9 -9 -9 -8 -8 -7 -6 -5 -4 -------- Run | Jun Mat Min Mat Min Exi Min Mat Fac Fac Fac Fac Damage Taken 11225 | . 232 445 250 . . 36 130 1060 435 753 7884 Core 1483 | . 24 51 . . . . . 177 51 28 1152 Absorbed by Shields 705 | . . . . . . . . . . 286 419 Regen/Repaired (Parts) 113 | . . . . . . . . . . . 113 Core Remaining (%) 90 | 100 . 70 . . . 100 100 74 94 97 . Volleys Fired 293 | . 25 17 19 . . 1 13 50 26 38 104 Largest 6 | . 2 2 4 . . 1 3 4 4 5 6 Hottest 561 | . 46 46 92 . . 30 69 150 135 160 561 Shots Fired 1154 | . 50 33 73 . . 1 35 188 101 151 522 Gun 881 | . 50 30 72 . . . 33 152 99 142 303 Cannon 237 | . . . . . . . . 32 2 . 203 Launcher 36 | . . 3 1 . . 1 2 4 . 9 16 Special . | . . . . . . . . . . . . Kinetic 504 | . 50 30 72 . . . 33 62 21 55 181 Thermal 590 | . . . . . . . . 122 80 84 304 Explosive 36 | . . 3 1 . . 1 2 4 . 9 16 Electromagnetic 24 | . . . . . . . . . . 3 21 Robot Hit Streak 27 | . 7 9 9 . . . 9 27 25 14 16 Robot Miss Streak 7 | . 3 3 7 . . 1 2 4 4 4 4 Penetration Max 1 | . . . . . . . . . . . 1 Secondary Targets 2 | . . . . . . . . . . 1 1 Max Gunslinging Chain 1 | . . . . . . . . . . 1 1 Shots Hit Robots 681 | . 29 22 40 . . . 23 119 71 89 288 Core Hits 372 | . 14 13 19 . . 5 11 68 33 50 159 Critical Kills 8 | . . . . . . . 1 . . 1 6 Critical Parts Destroyed 5 | . . . . . . . . . . . 5 Critical Strikes 37 | . . . . . . . 1 6 2 4 24 Burn 20 | . . . . . . . . 6 2 2 10 Meltdown 1 | . . . . . . . . . . . 1 Destroy 12 | . . . . . . . 1 . . 1 10 Blast 3 | . . . . . . . . . . . 3 Corrupt 1 | . . . . . . . . . . 1 . Melee Attacks 32 | . . . . . . . . 8 9 7 8 Impact . | . . . . . . . . . . . . Slashing 32 | . . . . . . . . 8 9 7 8 Piercing . | . . . . . . . . . . . . Sneak Attacks . | . . . . . . . . . . . . Combat Hostiles . | . . . . . . . . . . . . Follow-up Attacks . | . . . . . . . . . . . . Damage Inflicted 19109 | . 455 505 659 . . 248 448 2936 1505 2799 9554 Guns 11518 | . 455 339 602 . . . 322 2014 1474 1785 4527 Cannons 3520 | . . . . . . . . 343 31 . 3146 Explosions 3996 | . . 161 49 . . 248 126 558 . 1014 1840 Melee . | . . . . . . . . . . . . Ramming 75 | . . 5 8 . . . . 21 . . 41 Kinetic 5372 | . 455 339 602 . . . 322 614 278 563 2199 Thermal 9655 | . . . . . . . . 1743 1227 1210 5475 Explosive 3783 | . . 161 49 . . 248 126 558 . 1014 1627 Electromagnetic 224 | . . . . . . . . . . 12 212 Impact . | . . . . . . . . . . . . Slashing . | . . . . . . . . . . . . Piercing . | . . . . . . . . . . . . Highest Corruption 15 | . 1 1 . . . . . 2 2 2 15 Average Corruption 4 | . 1 1 . . . . . 1 1 1 7 Corruption Purged . | . . . . . . . . . . . . Corruption Blocked . | . . . . . . . . . . . . Effects 167 | . 3 16 . . . . . 6 4 . 138 Message Errors 41 | . 2 3 . . . . . 3 1 . 32 Matter Fused 24 | . . 2 . . . . . 2 1 . 19 Heat Flow Errors 27 | . 1 4 . . . . . 1 . . 21 Energy Discharges 26 | . . 2 . . . . . . . . 24 Parts Fused 3 | . . . . . . . . . . . 3 Data Loss (minor) 17 | . . . . . . . . . 2 . 15 Data Loss (major) 9 | . . 3 . . . . . . . . 6 Misfires 4 | . . 1 . . . . . . . . 3 Alerts 2 | . . 1 . . . . . . . . 1 Misdirections 5 | . . . . . . . . . . . 5 Weapon Failures 9 | . . . . . . . . . . . 9 Overload Shots 2 | . . . . . . . . 2 . . . Overflow Damage 322 | . . 34 . . . . . . 1 3 284 Projectiles 70 | . . . . . . . . . 1 . 69 Explosions 252 | . . 34 . . . . . . . 3 215 Melee . | . . . . . . . . . . . . Knockbacks 11 | . . . . . . . . . . . 11 Impact . | . . . . . . . . . . . . Kinetic 11 | . . . . . . . . . . . 11 Secondary . | . . . . . . . . . . . . Self-Inflicted Damage 496 | . . 57 . . . 37 40 . . 13 349 Shots 16 | . . 2 . . . 1 2 . . 1 10 Rammed 2 | . . . . . . . . . . . 2 Targets Rammed 10 | . . 1 3 . . . . 1 . . 5 Kicked 8 | . . 1 3 . . . . 1 . . 3 Crushed . | . . . . . . . . . . . . Highest Temperature 674 | . 231 231 110 . . . . 87 46 167 674 Average Temperature 103 | . 43 92 31 . . . . 24 11 43 151 Received Heat Transfer 1408 | . 72 18 93 . . . 54 213 129 96 733 Effects 15 | . . 2 . . . . . . . . 13 Shutdowns 5 | . . . . . . . . . . . 5 Energy Bleed 3 | . . . . . . . . . . . 3 Interference 3 | . . 2 . . . . . . . . 1 Short Circuit 1 | . . . . . . . . . . . 1 Damage (major) 2 | . . . . . . . . . . . 2 Damage (core) 1 | . . . . . . . . . . . 1 Siege Activations . | . . . . . . . . . . . . Robots Corrupted . | . . . . . . . . . . . . Combat Hostiles . | . . . . . . . . . . . . Parts Fried 1 | . . . . . . . . . . . 1 Impact Corruptions . | . . . . . . . . . . . . Robots Melted 9 | . . . . . . . . 2 . . 7 Combat Hostiles 9 | . . . . . . . . 2 . . 7 Parts Melted 50 | . . . . . . . . 14 8 9 19 Heat Transferred 16528 | . . . . . . . . 3467 2368 2257 8436 Parts Sabotaged . | . . . . . . . . . . . . Parts Stolen . | . . . . . . . . . . . . Parts Stripped . | . . . . . . . . . . . . Power Chain Reactions . | . . . . . . . . . . . . Missiles Intercepted . | . . . . . . . . . . . . Alert | -11 -10 -10 -9 -9 -9 -8 -8 -7 -6 -5 -4 ------- Run | Jun Mat Min Mat Min Exi Min Mat Fac Fac Fac Fac Peak Influence 1317 | . 206 103 316 64 . 117 162 281 218 361 1317 Initial 176 | . . 19 1 64 . . 45 3 137 97 176 Average 187 | . 45 34 88 64 . 117 75 96 103 88 397 Maximum Alert Level 4 | . 1 . 1 . . . . 1 1 1 4 Low Security (%) 74 | 100 99 100 80 100 . 100 100 85 86 84 45 Level 1 11 | . . . 19 . . . . 14 13 15 12 Level 2 6 | . . . . . . . . . . . 18 Level 3 5 | . . . . . . . . . . . 17 Level 4 2 | . . . . . . . . . . . 5 Level 5 . | . . . . . . . . . . . . High Security . | . . . . . . . . . . . . Max Security . | . . . . . . . . . . . . Squads Dispatched 39 | . 2 . 1 . . . 1 10 4 3 18 Investigation 2 | . . . . . . . . . 1 . 1 Extermination 20 | . . . . . . . . 4 3 3 10 Reinforcement 9 | . 2 . 1 . . . 1 3 . . 2 Assault 4 | . . . . . . . . . . . 4 Garrison 4 | . . . . . . . . 3 . . 1 Intercept . | . . . . . . . . . . . . Searches Triggered . | . . . . . . . . . . . . Construction Impeded 1 | . . . . . . . . 1 . . . Haulers Reinforced . | . . . . . . . . . . . . Active Scanning Responses . | . . . . . . . . . . . . Cargo Convoy Interrupts 2 | . . . . . . . . . 1 . 1 Stealth | -11 -10 -10 -9 -9 -9 -8 -8 -7 -6 -5 -4 --------- Run | Jun Mat Min Mat Min Exi Min Mat Fac Fac Fac Fac Distress Signals 12 | . . . 2 . . . 1 4 1 . 4 Communications Jammed 110 | . . . . . . . . . 7 17 86 Distress Signals 109 | . . . . . . . . . 7 17 85 Times Spotted 225 | . 16 18 18 . . . 8 35 17 25 88 Peak Tracking Total 11 | . 3 11 3 . . . 3 5 3 6 10 Tactical Retreats 16 | . 3 . 2 . . . 1 . 1 . 9 Traps | -11 -10 -10 -9 -9 -9 -8 -8 -7 -6 -5 -4 ------- Run | Jun Mat Min Mat Min Exi Min Mat Fac Fac Fac Fac Traps Triggered 7 | . 1 . . . . . . 1 1 . 4 Indirectly . | . . . . . . . . . . . . Trap Hack Attempts . | . . . . . . . . . . . . Triggered . | . . . . . . . . . . . . Disarmed . | . . . . . . . . . . . . Reprogrammed . | . . . . . . . . . . . . Reused . | . . . . . . . . . . . . Traps Extracted . | . . . . . . . . . . . . Installed . | . . . . . . . . . . . . Triggered 1 | . . . . . . . . . 1 . . Machines | -11 -10 -10 -9 -9 -9 -8 -8 -7 -6 -5 -4 ---------- Run | Jun Mat Min Mat Min Exi Min Mat Fac Fac Fac Fac Machines Disabled 17 | . . 1 . . . . . 2 2 1 11 Max in Single Turn 4 | . . 1 . . . . . 1 1 1 4 Machines Repaired . | . . . . . . . . . . . . Machines Sabotaged . | . . . . . . . . . . . . Overloaded Fab Kills . | . . . . . . . . . . . . Hacking | -11 -10 -10 -9 -9 -9 -8 -8 -7 -6 -5 -4 --------- Run | Jun Mat Min Mat Min Exi Min Mat Fac Fac Fac Fac Machines Accessed 37 | . 6 1 3 . . . . 4 6 6 11 Terminals 29 | . 6 . 3 . . . . 3 4 5 8 Fabricators 5 | . . . . . . . . 1 2 . 2 Repair Stations 2 | . . . . . . . . . . 1 1 Recycling Units . | . . . . . . . . . . . . Scanalyzers . | . . . . . . . . . . . . Garrison Access . | . . . . . . . . . . . . Total Hacks 78 | . 17 1 6 . . . . 8 11 10 25 Successful 23 | . 4 1 . . . . . 2 3 2 11 Failed 55 | . 13 . 6 . . . . 6 8 8 14 Catastrophic 24 | . 5 . 4 . . . . 2 6 2 5 Database Lockouts . | . . . . . . . . . . . . Manual 29 | . 10 . 6 . 1 . . . 3 5 4 Terminals 69 | . 17 . 6 . . . . 7 9 9 21 Fabricators 5 | . . . . . . . . 1 2 . 2 Repair Stations 3 | . . . . . . . . . . 1 2 Recycling Units . | . . . . . . . . . . . . Scanalyzers . | . . . . . . . . . . . . Garrison Access . | . . . . . . . . . . . . Terminal Hacks 15 | . 3 1 . . . . . 1 2 2 6 Record 3 | . . . . . . . . . 1 . 2 Open Door 2 | . . 1 . . . . . . . 1 . Open DSF 1 | . . . . . . . . . . 1 . Branch Access Points 1 | . 1 . . . . . . . . . . Alert Level 2 | . . . . . . . . . 1 . 1 Unreport Threat 4 | . 1 . . . . . . 1 . . 2 Locate Traps 1 | . 1 . . . . . . . . . . Dispatch Records 1 | . . . . . . . . . . . 1 Fabricator Hacks 4 | . . . . . . . . 1 1 . 2 Network Status 3 | . . . . . . . . 1 1 . 1 Build 1 | . . . . . . . . . . . 1 Repair Station Hacks 2 | . . . . . . . . . . . 2 Scan Component 1 | . . . . . . . . . . . 1 Repair 1 | . . . . . . . . . . . 1 Recycling Unit Hacks . | . . . . . . . . . . . . Scanalyzer . | . . . . . . . . . . . . Garrison Access Hacks . | . . . . . . . . . . . . Unauthorized Hacks 2 | . 1 . . . . . . . . . 1 Terminals 2 | . 1 . . . . . . . . . 1 Assimilate 2 | . 1 . . . . . . . . . 1 Fabricators . | . . . . . . . . . . . . Repair Stations . | . . . . . . . . . . . . Recycling Units . | . . . . . . . . . . . . Scanalyzers . | . . . . . . . . . . . . Garrison Access . | . . . . . . . . . . . . Data Cores Recovered . | . . . . . . . . . . . . Used . | . . . . . . . . . . . . Hacking Detections 33 | . 6 . 3 . . . . 4 6 5 9 Full Trace Events 3 | . 1 . . . . . . . 1 . 1 Feedback Events . | . . . . . . . . . . . . Feedback Blocked . | . . . . . . . . . . . . Robot Schematics Acquired . | . . . . . . . . . . . . Robots Built 3 | . . . . . . . . . . . 3 Authchips . | . . . . . . . . . . . . Time 187 | . . . . . . . . . . . 187 Total Robot Build Rating 21 | . . . . . . . . . . . 21 Part Schematics Acquired . | . . . . . . . . . . . . Parts Built . | . . . . . . . . . . . . Authchips . | . . . . . . . . . . . . Time . | . . . . . . . . . . . . Total Part Build Rating . | . . . . . . . . . . . . Parts Repaired 1 | . . . . . . . . . . . 1 Time 50 | . . . . . . . . . . . 50 Parts Recycled . | . . . . . . . . . . . . Recycled Matter . | . . . . . . . . . . . . Retrieved Matter . | . . . . . . . . . . . . Retrieved Components . | . . . . . . . . . . . . Parts Scanalyzed . | . . . . . . . . . . . . Part Schematics Acquired . | . . . . . . . . . . . . Parts Damaged . | . . . . . . . . . . . . Bothacking | -11 -10 -10 -9 -9 -9 -8 -8 -7 -6 -5 -4 ------------ Run | Jun Mat Min Mat Min Exi Min Mat Fac Fac Fac Fac Used RIF Installer . | . . . . . . . . . . . . Robots Hacked . | . . . . . . . . . . . . Non-combat . | . . . . . . . . . . . . Combat . | . . . . . . . . . . . . Robot Hacks Applied . | . . . . . . . . . . . . Relay Couplers Released . | . . . . . . . . . . . . Fabnet Peak Effective % . | . . . . . . . . . . . . Robots Rewired . | . . . . . . . . . . . . Allies Hacked . | . . . . . . . . . . . . Hacks Repelled . | . . . . . . . . . . . . Allies | -11 -10 -10 -9 -9 -9 -8 -8 -7 -6 -5 -4 -------- Run | Jun Mat Min Mat Min Exi Min Mat Fac Fac Fac Fac Total Allies 7 | . . . . 3 . . . . . . 4 Largest Group 3 | . . . . 3 3 3 3 . . . 3 Highest-Rated Group 141 | . . . . 40 40 40 40 . . . 141 Highest-Rated Ally 47 | . . . . 16 16 16 16 . . . 47 Total Orders . | . . . . . . . . . . . . Ally Attacks 40 | . . . . . . . 12 . 6 . 22 Total Damage 1151 | . . . . . . . 114 . 318 . 719 Kills 6 | . . . . . . . 1 . 3 . 2 Allies Corrupted . | . . . . . . . . . . . . Allies Melted . | . . . . . . . . . . . . Turrets Deployed 1 | . . . . . . . . . 1 . . Intel | -11 -10 -10 -9 -9 -9 -8 -8 -7 -6 -5 -4 ------- Run | Jun Mat Min Mat Min Exi Min Mat Fac Fac Fac Fac Robot Analysis Total . | . . . . . . . . . . . . Derelict Logs Recovered 2 | . . 2 . . . . . . . . . Drone Launches . | . . . . . . . . . . . . Drone Recoveries . | . . . . . . . . . . . . Exploration | -11 -10 -10 -9 -9 -9 -8 -8 -7 -6 -5 -4 ------------- Run | Jun Mat Min Mat Min Exi Min Mat Fac Fac Fac Fac Turns Passed 15413 | 48 874 1388 879 232 482 50 507 2729 1290 1889 5045 Spaces Moved 6553 | 42 459 672 313 120 253 26 210 1095 539 696 2128 Core 109 | 2 . . . . . . . . . . 107 Treads . | . . . . . . . . . . . . Legs 6181 | . 236 672 313 120 253 26 210 1095 539 696 2021 Wheels 263 | 40 223 . . . . . . . . . . Hover . | . . . . . . . . . . . . Flight . | . . . . . . . . . . . . Fastest Speed 50 | 50 80 190 190 190 190 190 190 122 192 190 50 Average Speed 183 | 78 136 190 235 190 190 190 190 185 192 190 178 Slowest Speed 260 | 80 190 190 260 190 190 190 190 192 192 192 190 Overloaded Moves . | . . . . . . . . . . . . Propulsion Burnouts . | . . . . . . . . . . . . Robots Hopped . | . . . . . . . . . . . . Cave-ins Triggered . | . . . . . . . . . . . . Exploration Rate (%) 37 | 3 69 98 35 37 62 11 24 33 15 13 47 Regions Visited 11 Branch Regions 4 Pre-discovered Areas 1 | . . 1 . . . . . . . . . Known Exits Taken 5 | . 1 1 . . . . . 1 1 1 . Unknown Exits Taken 6 | 1 . . 1 1 1 1 1 . . . . Scrap Searched . | . . . . . . . . . . . . Spaces Dug 34 | . . . . . . . . 14 7 6 7 Terrain Destroyed 430 | . . 31 11 . . 13 33 39 8 44 251 Melee 28 | . . . . . . . . 8 7 6 7 Projectile 83 | . . . . . . . . . 1 . 82 AOE 318 | . . 31 11 . . 13 33 31 . 37 162 Terrain Rammed . | . . . . . . . . . . . . Walls Destroyed . | . . . . . . . . . . . . Machines Disabled . | . . . . . . . . . . . . Actions | -11 -10 -10 -9 -9 -9 -8 -8 -7 -6 -5 -4 --------- Run | Jun Mat Min Mat Min Exi Min Mat Fac Fac Fac Fac Total 9217 | 53 659 750 407 124 256 26 293 1660 721 1162 3106 Wait 1934 | . 148 46 52 5 . . 56 433 114 376 704 Move 6542 | 41 458 671 312 119 252 25 209 1094 538 695 2128 Hop . | . . . . . . . . . . . . Pick Up 99 | 6 8 8 3 . 2 . 5 21 11 9 26 Fast Attach 28 | 6 2 . . . . . . 2 . 1 17 Attach 56 | . . 3 2 . . . 2 7 2 3 37 Detach 4 | . . . . . . . . 1 . . 3 Swap 108 | . 7 3 8 . . . 3 22 8 17 40 Drop 111 | . 11 1 8 . 2 . 5 21 13 16 34 Fire 293 | . 25 17 19 . . 1 13 50 26 38 104 Melee 32 | . . . . . . . . 8 9 7 8 Ram 2 | . . . . . . . . . . . 2 Kick 8 | . . 1 3 . . . . 1 . . 3 Crush . | . . . . . . . . . . . . Escape Stasis . | . . . . . . . . . . . . Rewire . | . . . . . . . . . . . . Trap . | . . . . . . . . . . . . Miscellaneous . | . . . . . . . . . . . . Route ------- -11/Junkyard -10/Materials (discovered 3 exits: *Mat x2 / *Min) -10/Mines (discovered 2 exits: *Mat x2) -9/Materials -9/Mines -9/Exiles -8/Mines -8/Materials -7/Factory -6/Factory -5/Factory (discovered 2 exits: *Fac / *Ext) -4/Factory History --------- Turn | Location | Event 21 | -11/Junkyard | Discovered new exit (range 15) 49 | -11/Junkyard | Entered Materials 135 | -10/Materials | Discovered new exit (range 10) 301 | -10/Materials | Build established: Mutant 358 | -10/Materials | Discovered new exit (range 4) 620 | -10/Materials | Identified exit to Mines 923 | -10/Materials | Entered Mines 931 | -10/Mines | Met a Derelict bent on vengeance 1189 | -10/Mines | Assembled infested the area 1194 | -10/Mines | Assisted by a Guerilla fighting off Assembled 1476 | -10/Mines | Learned location of Storage (-9) 1485 | -10/Mines | A weapon hastily lodged in a ceiling crevice suddenly fell to the ground 1573 | -10/Mines | Discovered new exit (range 5) 1758 | -10/Mines | Found the Drone Emporium 1772 | -10/Mines | Found Prototype Device 1904 | -10/Mines | Identified exit to Materials 2106 | -10/Mines | Found a damaged Exp. Sensor Array with a note attached 2110 | -10/Mines | Found Prototype Device 2311 | -10/Mines | Entered Materials 2311 | -9/Materials | Evolved 2 slots: Weapon x2 2603 | -9/Materials | Build established: Tank 3139 | -9/Materials | Discovered new exit (range 8) 3190 | -9/Materials | Entered Mines 3347 | -9/Mines | Assisted by bots powering up and referring to "LRC-V3" 3412 | -9/Mines | Deemed a non-threat by the Exiles lab entrance 3414 | -9/Mines | Discovered new exit (range 5) 3422 | -9/Mines | Entered Exiles 3422 | -9/Exiles | Accompanied by 3 allies 3464 | -9/Exiles | Build established: Mutant 3471 | -9/Exiles | Met 8R-AWN 3502 | -9/Exiles | Met EX-HEX 3553 | -9/Exiles | Met EX-BIN 3578 | -9/Exiles | Aligned with FarCom system 3580 | -9/Exiles | Given EX-Vault access code 3692 | -9/Exiles | Opened EX-Vault 3706 | -9/Exiles | Found Deploy-a-Sentry 3750 | -9/Exiles | Warned to stay clear of 0b10 Research branches 3804 | -9/Exiles | Met EX-DEC 3883 | -9/Exiles | Discovered new exit (range 10) 3904 | -9/Exiles | Left Exiles lab with Deploy-a-Sentry 3904 | -9/Exiles | Entered Mines 3904 | -8/Mines | Accompanied by 3 allies 3925 | -8/Mines | Discovered new exit (range 15) 3954 | -8/Mines | Entered Materials 3954 | -8/Materials | Accompanied by 3 allies 3954 | -8/Materials | Evolved 2 slots: Propulsion x1, Utility x1 3955 | -8/Materials | Identified Exp. Sensor Array 4259 | -8/Materials | Discovered new exit (range 3) 4393 | -8/Materials | Build established: Skirmisher 4461 | -8/Materials | Entered Factory 4461 | -7/Factory | Evolved 2 slots: Propulsion x1, Utility x1 5065 | -7/Factory | Build established: Scavenger-Tank 5376 | -7/Factory | Build established: Scavenger-Skirmisher 6240 | -7/Factory | Garrison activated, responded to threat 6600 | -7/Factory | Build established: Skirmisher 7157 | -7/Factory | Discovered new exit (range 7) 7188 | -7/Factory | Identified exit to Factory 7190 | -7/Factory | Entered another Factory area 7190 | -6/Factory | Evolved 2 slots: Power x1, Utility x1 7882 | -6/Factory | DAS Turret deployed 8419 | -6/Factory | Discovered new exit (range 13) 8434 | -6/Factory | Cargo convoy interrupted 8478 | -6/Factory | Identified exit to Factory 8480 | -6/Factory | Entered another Factory area 8480 | -5/Factory | Evolved 2 slots: Utility x1, Weapon x1 8775 | -5/Factory | Build established: Tank 8779 | -5/Factory | Identified exit to DSF 8959 | -5/Factory | Discovered new exit (range 6) 8965 | -5/Factory | Identified exit to Extension 10171 | -5/Factory | Destroyed 10 combat bots 10344 | -5/Factory | Discovered new exit (range 6) 10354 | -5/Factory | Identified exit to Factory 10369 | -5/Factory | Entered another Factory area 10369 | -4/Factory | Evolved 2 slots: Propulsion x1, Weapon x1 10570 | -4/Factory | Fabricated G-67 Veteran (x3) 10663 | -4/Factory | Build established: Executioner 10817 | -4/Factory | Garrison activated, responded to threat 11203 | -4/Factory | Build established: Scavenger-Executioner 11817 | -4/Factory | Spotted Striker 11818 | -4/Factory | Cargo convoy interrupted 11819 | -4/Factory | Spotted Executioner 11844 | -4/Factory | Destroyed Striker 11860 | -4/Factory | Destroyed Executioner 11912 | -4/Factory | Lost 11 parts (5n2u4w) 12911 | -4/Factory | Repaired Flexi-carbon Leg 14369 | -4/Factory | First assault squad dispatched 14705 | -4/Factory | System corruption reached 10% 15193 | -4/Factory | Core integrity fell below 50% 15256 | -4/Factory | Lost 16 parts (2p3n6u5w) 15387 | -4/Factory | Lost 14 parts (2p6n3u3w) 15402 | -4/Factory | Core integrity fell below 20% 15414 | -4/Factory | Destroyed by P-70 Sage with Tesla Rifle Last Messages --------------- 15359_ Acquired 7 matter. 15362_ System corrupted: Energy discharge (-5). 15362_ P-70 Sage resets B-60 Warrior, system corruption cleaned. 15362_ M-36 Artificer repairs P-70 Sage. 15369_ ALERT: Significant disruption in Zone 8J, assault force dispatched. 15381_ System corrupted: Component data lost. 15397_ System corrupted: Substantial component data lost. 15397_ Slug penetrates Wall. 15400_ Penetrated by Slug. 15401_ Slug penetrates Wall. 15401_ Penetrated by Slug. 15406_ Slug penetrates Door. 15406_ Penetrated by Slug. 15409_ Slug penetrates Wall. 15410_ Slammed into Y-64 Sentinel. 15411_ Penetrated by Slug. 15411_ Slug penetrates Y-64 Sentinel. 15411_ Penetrated by Slug. 15411_ Slug penetrates Y-64 Sentinel. 15414_ FS/JLJ0ETMZOKB|>WRHXQ98NLLGG>SCH1 Map ----- +----------------------------------------------------+ | ?????????????????????????????????????????????????? | | ?????????????????????????????????????????????????? | | ?????????????????????????????????????????????????? | | ?????????????????????????????????????????????????? | | ?????????????????????????????????????????????????? | | ?????????????????????????????????????????????????? | | ?????????????????????????????????????????????????? | | ?????????????????????????????????????????????????? | | ?????????????????????????????????????????????????? | | ?????????????????????????????????????????????????? | | ?????????????????????????????????????????????????? | | ?????????????????????????????????????????????????? | | ?????????????????????????????????????????????????? | | ?????????????????????????????????????????????????? | | ?? ###########????####????????????????????????? | | # # #???? / #????????????????????????? | | # # #????? #????????????????????????? | | # # #????? #????????????????????????? | | # # = #????? /#????????????????????????? | | + + #????? #????????????????????????? | | # # #######/### #??????????????????? | | # # h Y Y??????????? | | # # h ####### ### #??????????????????? | | # ####/######????## #########????????????????? | | # #### ########### # #????????????????? | | # p = @ """"#????????????????? | | # ######### # """"#????????????????? | | # #???????##### """"#????????????????? | | # #????????????? """"?????????????????? | | #????????????? ?????????????????? | | ### ##########??????????????#####????????????????? | | #??????????????????????????????????????? | | #??????????????????????????????????????? | | #??????????????????????????????????????? | | #??????????????????????????????????????? | | #??????????????????????????????????????? | | #??????????????????????????????????????? | | #??????????????????????????????????????? | | #??????????????????????????????????????? | | #??????????????????????????????????????? | | #??????????????????????????????????????? | | #??????????????????????????????????????? | | ###########??????????????????????????????????????? | | | | | | | | | | | | | | | +----------------------------------------------------+ Best States ------------- Heat Dissipation 111 Coolant Potential 80 Energy Generation 39 Energy Capacity 540 Matter Stores 300 Matter Capacity 300 Sight Range 16 Robot Scan Range 20 Terrain Scan Density 10 Jamming Range 16 Armor Coverage 450 Resistance: KI 30 Evasion (%) 55 Item Schematics ----------------- None Robot Schematics ------------------ None Fabricated ------------ G-67 Veteran | x3 | -4/Factory | Preloaded Alien Tech Used ----------------- None Achievements -------------- Maybe Next Time I'll Detach My Launcher Challenges ------------ None Game ------ Seed ReactiveFortressBlaster Manual? 0 Play Time 02:35:40 Cumulative 56.9 hours Start 2024.02.09 @ 13:21:06 End 2024.02.10 @ 13:14:25 Sessions 8 Manual Loads 0 Difficulty Rogue Special Mode None Game No. 33 Rogue 32 Adventurer 1 Explorer 0 Win Type - Total 0 Types 0/0/0/0/0/0/0/0/0 Lore% 38 Gallery% 33 Achievement% 30 Wizard Run 0 Options --------- ASCII 1 Keyboard 1 Movement Numpad Keybinds 0 Fullscreen 1 Font 18/SmallcapsGlow Map View 76x50 Tactical HUD 1 Map Filters NONE Filters NONE Steam 1 RUN: 56a58292-6bde-4008-8c8c-cb8d69b2de69